bitfinex-derivatives/quotes_BTCF0:USTF0_20260214
["timestamp","ask_amount","ask_price","bid_price","bid_amount"]
[1771051958405,0.01452,68951.0,68943.0,0.029032]
[1771051958698,0.01452,68951.0,68940.0,0.014513]
[1771051958903,0.01452,68951.0,68944.0,0.014512]
[1771051959202,0.01452,68951.0,68942.0,0.014512]
[1771051959907,0.01452,68951.0,68944.0,0.014512]
[1771051960808,0.03352,68951.0,68944.0,0.014512]
[1771051961309,0.03352,68951.0,68941.0,0.029032]
[1771051961509,0.17950933,68951.0,68941.0,0.029032]
[1771051961709,0.17950933,68951.0,68942.0,0.014512]
[1771051961904,0.17950933,68951.0,68941.0,0.01452]
[1771051962409,0.17950933,68951.0,68942.0,0.014512]
[1771051963208,0.17950933,68951.0,68942.0,0.029024]
[1771051963409,0.16050933,68951.0,68944.0,0.004]
[1771051964109,0.16050933,68951.0,68942.0,0.033024]
[1771051964309,0.16050933,68951.0,68942.0,0.018512]
[1771051965010,0.16050933,68951.0,68944.0,0.007]
[1771051965710,0.16050933,68951.0,68942.0,0.014512]
[1771051966012,0.01452,68951.0,68942.0,0.014512]
[1771051966612,0.01452,68951.0,68942.0,0.021512]
[1771051967114,0.01452,68951.0,68943.0,0.014512]
[1771051967709,0.01452,68950.0,68946.0,0.014511]
[1771051967903,0.01452,68951.0,68946.0,0.014511]
[1771051969615,0.01452,68952.0,68946.0,0.014511]
[1771051969816,0.005,68950.0,68946.0,0.014511]
[1771051970313,0.01452,68952.0,68945.0,0.014512]
[1771051970509,0.016511,68951.0,68939.0,0.014513]
[1771051970707,0.016511,68951.0,68940.0,0.01452]
[1771051970708,0.014511,68950.0,68940.0,0.01452]
[1771051970913,0.01452,68949.0,68937.0,0.14512]
[1771051971113,0.029031,68949.0,68938.0,0.014513]
[1771051971610,0.014511,68947.0,68938.0,0.01452]
[1771051971809,0.01452,68946.0,68938.0,0.01452]
[1771051972117,0.15368757,68946.0,68937.0,0.15964]
[1771051972316,0.15368757,68946.0,68937.0,0.06946873]
[1771051973120,0.07251316,68945.0,68937.0,0.06946873]
[1771051973819,0.07251316,68945.0,68937.0,0.08398173]
[1771051974225,0.08051316,68945.0,68937.0,0.08398173]
[1771051974915,0.07751316,68945.0,68937.0,0.08398173]
[1771051975922,0.07751316,68945.0,68937.0,0.06946873]
[1771051976420,0.07751316,68945.0,68937.0,0.01452]
[1771051977423,0.08551316,68945.0,68937.0,0.01452]
[1771051979421,0.07251316,68945.0,68937.0,0.01452]
[1771051979617,0.08151316,68945.0,68937.0,0.01452]
[1771051982428,0.07251316,68945.0,68937.0,0.01452]
[1771051983130,0.08551316,68945.0,68937.0,0.01452]
[1771051986623,0.07251316,68945.0,68937.0,0.01452]
[1771051986825,0.07851316,68945.0,68937.0,0.01452]
[1771051989730,0.07251316,68945.0,68937.0,0.01452]
[1771051989931,0.07951316,68945.0,68937.0,0.01452]
[1771051990933,0.07751316,68945.0,68937.0,0.01452]
[1771051993635,0.07751316,68945.0,68937.0,0.029033]
[1771051994634,0.07251316,68945.0,68937.0,0.029033]
[1771051995437,0.07751316,68945.0,68937.0,0.029033]
[1771051998439,0.07751316,68945.0,68937.0,0.01452]
[1771051999938,0.07751316,68945.0,68937.0,0.029033]
[1771052001232,0.07751316,68945.0,68937.0,0.01452]
[1771052001434,0.07751316,68945.0,68940.0,0.014513]
[1771052002842,0.07251316,68945.0,68940.0,0.014513]
[1771052003042,0.07651316,68945.0,68940.0,0.014513]
[1771052003342,0.07251316,68945.0,68940.0,0.014513]
[1771052003541,0.07751316,68945.0,68940.0,0.014513]
[1771052004342,0.07751316,68945.0,68939.0,0.014513]
[1771052005846,0.07251316,68945.0,68939.0,0.014513]
[1771052006347,0.07251316,68945.0,68940.0,0.014513]
[1771052006843,0.07751316,68945.0,68940.0,0.014513]
[1771052008243,0.07751316,68945.0,68939.0,0.014513]
[1771052009444,0.07251316,68945.0,68939.0,0.014513]
[1771052009942,0.07751316,68945.0,68939.0,0.014513]
[1771052010848,0.07751316,68945.0,68938.0,0.014513]
[1771052013647,0.159631,68949.0,68938.0,0.014513]
[1771052013842,0.004,68945.0,68938.0,0.014513]
[1771052014038,0.01452,68944.0,68938.0,0.014513]
[1771052015551,0.01152,68944.0,68938.0,0.014513]
[1771052015950,0.00952,68944.0,68938.0,0.014513]
[1771052016255,0.01052,68944.0,68938.0,0.014513]
[1771052020150,0.00952,68944.0,68938.0,0.015513]
[1771052023958,0.00952,68944.0,68938.0,0.001]
[1771052025962,0.00952,68944.0,68937.0,0.01452]
[1771052031563,0.00952,68944.0,68937.0,0.01552]
[1771052036466,0.024032,68944.0,68937.0,0.01552]
[1771052037469,0.00952,68944.0,68937.0,0.01552]
[1771052037671,0.00952,68944.0,68937.0,0.01452]
[1771052044075,0.00952,68944.0,68933.0,0.66423754]
[1771052044373,0.00952,68944.0,68936.0,0.014514]
[1771052044572,0.00952,68944.0,68935.0,0.014514]
[1771052045573,0.00952,68944.0,68935.0,0.029028]
[1771052047474,0.00952,68944.0,68936.0,0.014514]
[1771052051680,0.00952,68944.0,68935.0,0.014514]
[1771052052475,0.00952,68944.0,68935.0,0.029034]
[1771052052681,0.00952,68944.0,68935.0,0.01452]
[1771052053281,0.00952,68944.0,68935.0,0.029034]
[1771052055386,0.01052,68944.0,68935.0,0.029034]
[1771052055785,0.01052,68944.0,68936.0,0.014514]
[1771052056883,0.00952,68944.0,68936.0,0.014514]
[1771052057782,0.01052,68944.0,68936.0,0.014514]
[1771052057988,0.01152,68944.0,68936.0,0.014514]
[1771052063195,0.01152,68944.0,68936.0,0.029028]
[1771052063395,0.00952,68944.0,68936.0,0.029028]
[1771052063595,0.01052,68944.0,68936.0,0.029028]
[1771052063795,0.01052,68944.0,68936.0,0.014514]
[1771052064498,0.01452,68943.0,68937.0,0.014513]
[1771052064691,0.07252157,68945.0,68938.0,0.014513]
[1771052064892,0.01452,68944.0,68937.0,0.014513]
[1771052066899,0.01452,68944.0,68937.0,0.017513]
[1771052067296,0.01452,68944.0,68937.0,0.019513]
[1771052068000,0.01452,68944.0,68937.0,0.017513]
[1771052069200,0.01452,68944.0,68937.0,0.014513]
[1771052069405,0.01452,68944.0,68937.0,0.017513]
[1771052069901,0.01452,68944.0,68937.0,0.014513]
[1771052070609,0.01452,68944.0,68938.0,0.014513]
[1771052071100,0.01452,68944.0,68937.0,0.017513]
[1771052071306,0.01452,68944.0,68939.0,0.014513]
[1771052071493,0.12816998,68947.0,68939.0,0.014513]
[1771052071494,0.01452,68943.0,68939.0,0.014513]
[1771052073501,0.01452,68943.0,68939.0,0.017513]
[1771052075104,0.01452,68943.0,68939.0,0.003]
[1771052075302,0.01452,68943.0,68935.0,0.043548]
[1771052075604,0.01452,68943.0,68935.0,0.029034]
[1771052076611,0.01452,68943.0,68935.0,0.043548]
[1771052076905,0.01452,68943.0,68935.0,0.045548]
[1771052077104,0.01452,68943.0,68940.0,0.14088915]
[1771052077300,0.01452,68944.0,68940.0,0.14088915]
[1771052077503,0.04512,68948.0,68938.0,0.014513]
[1771052077704,0.07252155,68945.0,68939.0,0.014513]
[1771052078204,0.01452,68944.0,68938.0,0.014513]
[1771052078906,0.01752,68944.0,68938.0,0.014513]
[1771052079108,0.01752,68944.0,68936.0,0.014514]
[1771052079708,0.01752,68944.0,68936.0,0.029028]
[1771052080107,0.01752,68944.0,68936.0,0.014514]
[1771052081505,0.01452,68943.0,68936.0,0.014514]
[1771052081712,0.00052,68943.0,68936.0,0.014514]
[1771052082013,0.01452,68943.0,68936.0,0.014514]
[1771052082212,0.00252,68943.0,68936.0,0.014514]
[1771052083013,0.01452,68943.0,68937.0,0.014513]
[1771052083313,0.01852,68943.0,68937.0,0.014513]
[1771052084614,0.01452,68943.0,68937.0,0.014513]
[1771052084915,0.01452,68943.0,68937.0,0.016513]
[1771052097826,0.01452,68943.0,68937.0,0.014513]
[1771052098127,0.01452,68943.0,68937.0,0.016513]
[1771052099425,0.01452,68943.0,68937.0,0.002]
[1771052099620,0.146866,68941.0,68934.0,0.28404731]
[1771052099831,0.146866,68941.0,68927.0,0.014515]
[1771052099832,0.02508155,68935.0,68932.0,0.01452]
[1771052100229,0.02508155,68935.0,68928.0,0.014515]
[1771052100230,0.02508155,68935.0,68931.0,0.01452]
[1771052100427,0.02508155,68935.0,68924.0,0.15853273]
[1771052100733,0.02508155,68935.0,68926.0,0.014516]
[1771052101231,0.02508155,68935.0,68926.0,0.029032]
[1771052101428,0.02508155,68935.0,68927.0,0.014516]
[1771052101730,0.02508155,68935.0,68928.0,0.01452]
[1771052101932,0.02508155,68935.0,68932.0,0.002]
[1771052102724,0.02508155,68935.0,68928.0,0.01452]
[1771052103724,0.014514,68934.0,68924.0,0.014516]
[1771052103931,0.01452,68933.0,68925.0,0.01452]
[1771052107136,0.01752,68933.0,68925.0,0.01452]
[1771052107935,0.032034,68933.0,68925.0,0.01452]
[1771052108135,0.01752,68933.0,68925.0,0.01452]
[1771052108830,0.01752,68933.0,68924.0,0.01452]
[1771052109932,0.014515,68929.0,68917.0,0.014518]
[1771052110135,0.014515,68929.0,68918.0,0.029037]
[1771052110638,0.02903,68929.0,68918.0,0.029037]
[1771052110838,0.014515,68929.0,68919.0,0.014517]
[1771052111230,0.015515,68929.0,68919.0,0.014517]
[1771052111437,0.001,68929.0,68919.0,0.014517]
[1771052111736,0.014515,68928.0,68918.0,0.01452]
[1771052111937,0.016515,68929.0,68918.0,0.029037]
[1771052112138,0.016515,68929.0,68918.0,0.043554]
[1771052113034,0.016515,68929.0,68919.0,0.014517]
[1771052113344,0.016515,68929.0,68918.0,0.029037]
[1771052113544,0.014515,68929.0,68919.0,0.015517]
[1771052113741,0.029035,68930.0,68920.0,0.014517]
[1771052116049,0.04355,68930.0,68920.0,0.014517]
[1771052116249,0.029035,68930.0,68920.0,0.014517]
[1771052116650,0.029035,68930.0,68920.0,0.031037]
[1771052117250,0.014515,68929.0,68920.0,0.031037]
[1771052117447,0.03959755,68927.0,68917.0,0.014518]
[1771052117653,0.03959755,68927.0,68916.0,0.15768463]
[1771052117654,0.01452,68926.0,68916.0,0.15768463]
[1771052117853,0.01452,68926.0,68917.0,0.029038]
[1771052119458,0.01452,68926.0,68917.0,0.01452]
[1771052119758,0.01452,68926.0,68917.0,0.01552]
[1771052120058,0.01452,68926.0,68917.0,0.030038]
[1771052120357,0.01452,68926.0,68917.0,0.029038]
[1771052120952,0.01452,68926.0,68918.0,0.014517]
[1771052121659,0.01452,68926.0,68919.0,0.014517]
[1771052121860,0.01452,68926.0,68917.0,0.029038]
[1771052121861,0.01452,68926.0,68918.0,0.15694444]
[1771052122060,0.03960155,68927.0,68921.0,0.014517]
[1771052122360,0.03960155,68927.0,68922.0,0.014517]
[1771052124065,0.001,68926.0,68921.0,0.014517]
[1771052124464,0.03960155,68927.0,68921.0,0.014517]
[1771052124765,0.03960155,68927.0,68922.0,0.004]
[1771052126160,0.014516,68925.0,68917.0,0.01452]
[1771052126464,0.05411755,68927.0,68917.0,0.029038]
[1771052127062,0.06863355,68927.0,68917.0,0.029038]
[1771052127363,0.001,68926.0,68922.0,0.004]
[1771052127565,0.015516,68926.0,68917.0,0.01452]
[1771052127863,0.01452,68927.0,68919.0,0.014517]
[1771052128166,0.07255015,68924.0,68919.0,0.014517]
[1771052129165,0.07255015,68924.0,68918.0,0.014517]
[1771052130165,0.07855015,68924.0,68918.0,0.014517]
[1771052130463,0.08455015,68924.0,68918.0,0.014517]
[1771052131067,0.08455015,68924.0,68917.0,0.17146544]
[1771052132658,0.07855015,68924.0,68917.0,0.17146544]
[1771052133068,0.07755015,68924.0,68917.0,0.17146544]
[1771052133868,0.07655015,68924.0,68917.0,0.17146544]
[1771052134065,0.07655015,68924.0,68917.0,0.15694744]
[1771052134266,0.07655015,68924.0,68917.0,0.01452]
[1771052135767,0.07255015,68924.0,68917.0,0.01452]
[1771052135967,0.07955015,68924.0,68917.0,0.01552]
[1771052136866,0.07255015,68924.0,68917.0,0.01452]
[1771052137170,0.08055015,68924.0,68917.0,0.01552]
[1771052137964,0.07255015,68924.0,68917.0,0.01552]
[1771052138169,0.07955015,68924.0,68917.0,0.01552]
[1771052138871,0.06055015,68924.0,68917.0,0.01552]
[1771052139273,0.05655015,68924.0,68917.0,0.01552]
[1771052139474,0.07106615,68924.0,68917.0,0.01452]
[1771052139967,0.05755015,68924.0,68917.0,0.01652]
[1771052140172,0.06255015,68924.0,68917.0,0.01652]
[1771052140373,0.05855015,68924.0,68917.0,0.01652]
[1771052140573,0.04555015,68924.0,68917.0,0.01452]
[1771052140767,0.04555015,68924.0,68918.0,0.01452]
[1771052141883,0.01452,68927.0,68918.0,0.01452]
[1771052142077,0.07254367,68924.0,68918.0,0.01452]
[1771052143383,0.08054367,68924.0,68918.0,0.01452]
[1771052144378,0.08054367,68924.0,68918.0,0.01552]
[1771052144770,0.08954367,68924.0,68918.0,0.01652]
[1771052147071,0.07254367,68924.0,68918.0,0.01452]
[1771052147980,0.08154367,68924.0,68918.0,0.01552]
[1771052148981,0.08954367,68924.0,68918.0,0.01652]
[1771052149684,0.07254367,68924.0,68918.0,0.01452]
[1771052150884,0.08054367,68924.0,68918.0,0.01552]
[1771052154387,0.07254367,68924.0,68918.0,0.01452]
[1771052154990,0.07254367,68924.0,68918.0,0.01552]
[1771052155288,0.07854367,68924.0,68918.0,0.01552]
[1771052161197,0.01452,68927.0,68918.0,0.01552]
[1771052161497,0.07254367,68924.0,68918.0,0.01552]
[1771052161792,0.08154367,68924.0,68918.0,0.01552]
[1771052162502,0.014516,68923.0,68910.0,0.014519]
[1771052162796,0.14230102,68922.0,68911.0,0.174199]
[1771052162998,0.014517,68922.0,68911.0,0.174199]
[1771052163187,0.11057967,68924.0,68911.0,0.174199]
[1771052163188,0.014517,68923.0,68911.0,0.174199]
[1771052163388,0.014517,68923.0,68912.0,0.12797887]
[1771052164192,0.014517,68923.0,68912.0,0.14249787]
[1771052165396,0.08706367,68924.0,68912.0,0.14249787]
[1771052165599,0.002,68923.0,68912.0,0.14249787]
[1771052165797,0.002,68923.0,68912.0,0.014519]
[1771052166001,0.00127,68923.0,68912.0,0.014519]
[1771052166184,0.00046,68923.0,68912.0,0.014519]
[1771052166498,0.014516,68923.0,68911.0,0.174199]
[1771052166796,0.029033,68923.0,68912.0,0.001]
[1771052166997,0.014516,68923.0,68912.0,0.015519]
[1771052167196,0.015516,68923.0,68912.0,0.016519]
[1771052168300,0.014396,68923.0,68912.0,0.016519]
[1771052168592,0.013666,68923.0,68912.0,0.016519]
[1771052168799,0.012926,68923.0,68912.0,0.014519]
[1771052169189,0.010016,68923.0,68912.0,0.014519]
[1771052169390,0.010016,68923.0,68912.0,0.019519]
[1771052169898,0.009016,68923.0,68912.0,0.014519]
[1771052170602,0.010016,68923.0,68912.0,0.021519]
[1771052170801,0.01796967,68924.0,68912.0,0.021519]
[1771052171598,0.001,68923.0,68912.0,0.022519]
[1771052171908,0.015517,68923.0,68912.0,0.022519]
[1771052172096,0.015517,68923.0,68912.0,0.014519]
[1771052172097,0.014517,68923.0,68912.0,0.014519]
[1771052173304,0.015517,68923.0,68912.0,0.021519]
[1771052174804,0.014517,68923.0,68912.0,0.022519]
[1771052175005,0.03248567,68924.0,68912.0,0.022519]
[1771052175303,0.001,68923.0,68912.0,0.022519]
[1771052175504,0.001,68923.0,68912.0,0.037038]
[1771052175706,0.001,68923.0,68913.0,0.014518]
[1771052175907,0.002,68923.0,68914.0,0.01452]
[1771052176508,0.03248567,68924.0,68914.0,0.01452]
[1771052177903,0.01796967,68924.0,68915.0,0.014518]
[1771052178099,0.01796967,68924.0,68916.0,0.014518]
[1771052178298,0.01796967,68924.0,68917.0,0.01452]
[1771052178701,0.001,68923.0,68917.0,0.01452]
[1771052179206,0.01896967,68924.0,68917.0,0.01452]
[1771052179706,0.01796967,68924.0,68917.0,0.01452]
[1771052181209,0.01452,68925.0,68918.0,0.14249587]
[1771052181503,0.14516,68929.0,68918.0,0.14249587]
[1771052181504,0.01452,68927.0,68918.0,0.14249587]
[1771052181710,0.07254367,68924.0,68918.0,0.14249587]
[1771052182009,0.07354367,68924.0,68918.0,0.14249587]
[1771052182311,0.0742,68929.0,68918.0,0.14249587]
[1771052182506,0.07254367,68924.0,68918.0,0.14249587]
[1771052182807,0.07254367,68924.0,68918.0,0.15149587]
[1771052183109,0.00100367,68924.0,68918.0,0.17501287]
[1771052183299,0.076115,68929.0,68918.0,0.17501287]
[1771052183495,0.076115,68929.0,68919.0,0.014517]
[1771052183701,0.076115,68929.0,68920.0,0.01452]
[1771052183910,0.07254368,68924.0,68920.0,0.01452]
[1771052186009,0.07354368,68924.0,68920.0,0.02452]
[1771052188619,1e-08,68924.0,68920.0,0.02452]
[1771052188918,0.014514,68934.0,68923.0,0.014516]
[1771052189125,0.05504436,68924.0,68923.0,0.029036]
[1771052189421,0.01452,68933.0,68924.0,0.014516]
[1771052189616,0.07254221,68925.0,68924.0,0.014516]
[1771052189818,0.01452,68933.0,68924.0,0.014516]
[1771052190015,0.07254261,68925.0,68924.0,0.014516]
[1771052190219,0.01452,68933.0,68924.0,0.014516]
[1771052190519,0.07254261,68925.0,68924.0,0.014516]
[1771052190721,0.029034,68933.0,68924.0,0.014516]
[1771052190919,0.00121262,68925.0,68924.0,0.014516]
[1771052191122,0.029034,68933.0,68924.0,0.014516]
[1771052191322,0.04387262,68925.0,68924.0,0.014516]
[1771052191520,0.01452,68933.0,68925.0,0.014516]
[1771052191715,0.04350661,68925.0,68924.0,0.021516]
[1771052191912,0.01452,68933.0,68926.0,0.014516]
[1771052192121,0.01452,68934.0,68925.0,0.014516]
[1771052192316,0.01452,68934.0,68926.0,0.014516]
[1771052192522,0.07254151,68927.0,68926.0,0.014516]
[1771052192722,0.01452,68934.0,68926.0,0.014516]
[1771052192723,0.029034,68934.0,68926.0,0.014516]
[1771052193017,0.07254044,68927.0,68926.0,0.014516]
[1771052193222,0.029034,68934.0,68926.0,0.014516]
[1771052193524,0.07254052,68927.0,68925.0,0.008]
[1771052193723,0.014514,68933.0,68925.0,0.008]
[1771052194024,0.07254048,68927.0,68925.0,0.008]
[1771052194224,0.014514,68933.0,68925.0,0.008]
[1771052194522,0.07254051,68927.0,68924.0,0.029036]
[1771052194724,0.07254051,68927.0,68926.0,0.008]
[1771052195228,0.07254051,68927.0,68925.0,0.012]
[1771052195828,0.07254051,68927.0,68926.0,0.006]
[1771052196425,0.07254051,68927.0,68925.0,0.007]
[1771052197926,0.07254051,68927.0,68926.0,0.001]
[1771052198427,0.07654051,68927.0,68924.0,0.01452]
[1771052198830,0.07581051,68927.0,68924.0,0.01452]
[1771052199132,0.03116426,68941.0,68926.0,0.14253626]
[1771052199322,0.014513,68942.0,68930.0,0.014515]
[1771052199517,0.07253197,68935.0,68931.0,0.01452]
[1771052199722,0.02132926,68943.0,68931.0,0.04355]
[1771052199920,0.07252654,68940.0,68932.0,0.014514]
[1771052200120,0.07252654,68940.0,68931.0,0.029035]
[1771052200316,0.13610309,68937.0,68926.0,0.015516]
[1771052200519,0.15062309,68936.0,68927.0,0.15968]
[1771052200724,0.15062309,68936.0,68928.0,0.01452]
[1771052200924,0.01452,68936.0,68928.0,0.01452]
[1771052201831,0.01452,68936.0,68928.0,0.029035]
[1771052202025,0.01452,68936.0,68929.0,0.014515]
[1771052202532,0.01452,68936.0,68930.0,0.014515]
[1771052202733,0.21162963,68940.0,68931.0,0.01452]
[1771052202734,0.01452,68939.0,68931.0,0.01452]
[1771052205433,0.005,68936.0,68931.0,0.01452]
[1771052208034,0.003,68936.0,68931.0,0.01452]
[1771052214543,0.01452,68939.0,68931.0,0.01452]
[1771052215444,0.01,68936.0,68931.0,0.01452]
[1771052215638,0.01452,68939.0,68931.0,0.01452]
[1771052215839,0.02552,68939.0,68931.0,0.01452]
[1771052218840,0.02552,68939.0,68929.0,0.014515]
[1771052219042,0.02552,68939.0,68931.0,5e-06]
[1771052219245,0.014515,68932.0,68927.0,0.01452]
[1771052219443,0.08704079,68932.0,68923.0,0.14512]
[1771052219646,0.08704079,68932.0,68924.0,0.01452]
[1771052219845,0.08704079,68932.0,68925.0,0.01452]
[1771052220048,0.08704079,68932.0,68923.0,0.14512]
[1771052220248,0.08704079,68932.0,68924.0,0.01452]
[1771052220846,0.09704079,68932.0,68924.0,0.01452]
[1771052221341,0.10204079,68932.0,68924.0,0.01452]
[1771052222646,0.08752579,68932.0,68924.0,0.029036]
[1771052222846,0.08752579,68932.0,68924.0,0.01452]
[1771052223041,0.08752579,68932.0,68925.0,0.01452]
[1771052224050,0.08752579,68932.0,68924.0,0.029036]
[1771052224051,0.20214822,68932.0,68924.0,0.029036]
[1771052224445,0.19514822,68932.0,68925.0,0.014516]
[1771052224654,0.08052579,68932.0,68925.0,0.014516]
[1771052225045,0.07252579,68932.0,68925.0,0.014516]
[1771052225350,0.08052579,68932.0,68925.0,0.014516]
[1771052225853,0.08052579,68932.0,68924.0,0.029036]
[1771052227455,0.07952579,68932.0,68924.0,0.029036]
[1771052228954,0.07952579,68932.0,68920.0,0.01452]
[1771052228955,0.014515,68931.0,68920.0,0.01452]
[1771052229150,0.014515,68931.0,68921.0,0.01452]
[1771052230055,0.014515,68931.0,68924.0,0.002]
[1771052230257,0.13713743,68931.0,68919.0,0.014517]
[1771052230454,0.12262243,68929.0,68918.0,0.159677]
[1771052230757,0.01452,68928.0,68919.0,0.01452]
[1771052231159,0.01452,68928.0,68921.0,0.003]
[1771052231459,0.01452,68928.0,68919.0,0.029037]
[1771052231758,0.01452,68928.0,68924.0,0.002]
[1771052231944,0.01452,68928.0,68919.0,0.029037]
[1771052237261,0.01452,68928.0,68919.0,0.043554]
[1771052239449,0.01452,68928.0,68919.0,0.01452]
[1771052239654,0.05,72571.0,68927.0,0.014516]
[1771052239655,0.01452,68937.0,68927.0,0.014516]
[1771052239853,0.01452,68937.0,68928.0,0.029035]
[1771052240159,0.01452,68938.0,68928.0,0.029035]
[1771052240457,0.104713,68940.0,68928.0,0.029035]
[1771052240458,0.08714041,68940.0,68932.0,0.014514]
[1771052240658,0.01452,68939.0,68934.0,0.014514]
[1771052240861,0.00158,68939.0,68934.0,0.014514]
[1771052241060,0.10166041,68940.0,68934.0,0.014514]
[1771052241260,0.07253185,68935.0,68934.0,0.014514]
[1771052241460,0.10166041,68940.0,68934.0,0.014514]
[1771052241660,0.0164321,68935.0,68933.0,0.014514]
[1771052241862,0.10166041,68940.0,68933.0,0.014514]
[1771052242162,0.07253183,68935.0,68933.0,0.014514]
[1771052242362,0.05776041,68940.0,68933.0,0.014514]
[1771052242666,0.07253108,68936.0,68933.0,0.014514]
[1771052242963,0.07253104,68936.0,68933.0,0.017514]
[1771052243273,0.0010212,68936.0,68933.0,0.014514]
[1771052243462,0.0010212,68936.0,68933.0,0.017514]
[1771052243653,0.05178161,68940.0,68933.0,0.017514]
[1771052243858,0.07253104,68936.0,68933.0,0.014514]
[1771052244053,0.06253104,68936.0,68933.0,0.014514]
[1771052244258,0.04453104,68936.0,68934.0,0.014514]
[1771052244460,0.04153104,68936.0,68934.0,0.014514]
[1771052244661,0.02831265,68940.0,68934.0,0.014514]
[1771052244967,0.07253104,68936.0,68934.0,0.029034]
[1771052245168,0.05453104,68936.0,68934.0,0.01452]
[1771052245466,0.01000104,68936.0,68934.0,0.01452]
[1771052245666,0.00384369,68940.0,68934.0,0.01452]
[1771052245967,0.07253104,68936.0,68934.0,0.029034]
[1771052246466,0.07253104,68936.0,68934.0,0.01452]
[1771052246763,0.23218499,68946.0,68935.0,0.014514]
[1771052246961,0.01452,68945.0,68935.0,0.014514]
[1771052247267,0.07253104,68936.0,68935.0,0.014514]
[1771052247468,0.01433304,68944.0,68934.0,0.031034]
[1771052247665,0.01452,68945.0,68935.0,0.014514]
[1771052247860,0.01452,68944.0,68935.0,0.014514]
[1771052248056,0.07252776,68939.0,68935.0,0.014514]
[1771052248865,0.07252776,68939.0,68934.0,0.031034]
[1771052249268,0.07252776,68939.0,68934.0,0.029034]
[1771052249563,0.07252776,68939.0,68935.0,0.001]
[1771052249867,0.07352776,68939.0,68930.0,0.014515]
[1771052250069,0.07352776,68939.0,68931.0,0.01452]
[1771052250572,0.07252776,68939.0,68931.0,0.01452]
[1771052251162,0.014513,68938.0,68930.0,0.01452]
[1771052251367,0.08704076,68939.0,68928.0,0.014515]
[1771052251566,0.08704076,68939.0,68929.0,0.029035]
[1771052252070,0.07252776,68939.0,68929.0,0.029035]
[1771052253774,0.07132776,68939.0,68929.0,0.029035]
[1771052254073,0.07432776,68939.0,68929.0,0.01452]
[1771052254260,0.07312776,68939.0,68929.0,0.01452]
[1771052254775,0.07239776,68939.0,68929.0,0.01452]
[1771052255263,0.08571076,68939.0,68929.0,0.01452]
[1771052255468,0.08198076,68939.0,68929.0,0.01452]
[1771052255774,0.08378076,68939.0,68929.0,0.01452]
[1771052255964,0.08305076,68939.0,68929.0,0.01452]
[1771052256274,0.08185076,68939.0,68929.0,0.01452]
[1771052256872,0.07917076,68939.0,68929.0,0.01452]
[1771052257374,0.07844076,68939.0,68929.0,0.01452]
[1771052257573,0.07573076,68939.0,68929.0,0.01452]
[1771052257774,0.07500076,68939.0,68929.0,0.01452]
[1771052257974,0.07229076,68939.0,68929.0,0.01452]
[1771052258275,0.07156076,68939.0,68929.0,0.01452]
[1771052258574,0.06885076,68939.0,68929.0,0.01452]
[1771052258776,0.06812076,68939.0,68929.0,0.01452]
[1771052259076,0.06541076,68939.0,68929.0,0.01452]
[1771052259376,0.06468076,68939.0,68929.0,0.01452]
[1771052259574,0.06168076,68939.0,68929.0,0.01452]
[1771052259775,0.05966076,68939.0,68929.0,0.01452]
[1771052259971,0.05893076,68939.0,68929.0,0.01452]
[1771052260179,0.05591076,68939.0,68929.0,0.01452]
[1771052260477,0.05518076,68939.0,68929.0,0.01452]
[1771052260879,0.05187076,68939.0,68929.0,0.01452]
[1771052261080,0.04970076,68939.0,68929.0,0.01452]
[1771052261281,0.04639076,68939.0,68929.0,0.01452]
[1771052261581,0.04565076,68939.0,68929.0,0.01452]
[1771052261881,0.04017076,68939.0,68929.0,0.01452]
[1771052262176,0.014512,68964.0,68943.0,0.13202688]
[1771052262381,0.014512,68964.0,68949.0,0.014511]
[1771052262577,0.07243698,68953.0,68950.0,0.16105788]
[1771052262776,0.01452,68961.0,68950.0,0.16105788]
[1771052262970,0.029028,68961.0,68951.0,0.13901088]
[1771052263284,0.07251316,68953.0,68951.0,0.13901088]
[1771052263468,0.014509,68960.0,68951.0,0.13901088]
[1771052263967,0.07251316,68953.0,68951.0,0.13901088]
[1771052264477,0.014509,68960.0,68951.0,0.13901088]
[1771052264478,0.029028,68961.0,68951.0,0.13901088]
[1771052264681,0.07251317,68953.0,68951.0,0.13901088]
[1771052264982,0.029028,68961.0,68951.0,0.13901088]
[1771052265185,0.07251316,68953.0,68951.0,0.15352088]
[1771052265380,0.029028,68961.0,68951.0,0.15352088]
[1771052265686,0.07251316,68953.0,68951.0,0.15352088]
[1771052266878,0.07251316,68953.0,68951.0,0.13901088]
[1771052267382,0.06552916,68953.0,68952.0,0.14653688]
[1771052267885,0.06652916,68953.0,68952.0,0.14653688]
[1771052268184,0.06652916,68953.0,68951.0,0.01451]
[1771052268685,0.06652916,68953.0,68950.0,0.01452]
[1771052269586,0.06552916,68953.0,68950.0,0.01452]
[1771052270688,0.06552916,68953.0,68944.0,0.159672]
[1771052270883,0.06552916,68953.0,68945.0,0.01452]
[1771052271081,0.06552916,68953.0,68950.0,0.006]
[1771052271389,0.06552916,68953.0,68951.0,0.01452]
[1771052274293,0.06552916,68953.0,68951.0,0.01652]
[1771052274787,0.00744916,68953.0,68951.0,0.01652]
[1771052274988,0.029018,68960.0,68951.0,0.01652]
[1771052275293,0.07251316,68953.0,68951.0,0.01652]
[1771052276197,0.01605016,68962.0,68951.0,0.01652]
[1771052276398,0.07251316,68953.0,68951.0,0.01652]
[1771052277096,0.14503772,68953.0,68951.0,0.01652]
[1771052277694,0.14503772,68953.0,68951.0,0.01452]
[1771052278295,0.07252456,68952.0,68951.0,0.01452]
[1771052278690,0.014509,68959.0,68951.0,0.01452]
[1771052278889,0.07251316,68953.0,68951.0,0.01452]
[1771052279092,0.07251316,68953.0,68951.0,0.01552]
[1771052279495,0.07251316,68953.0,68951.0,0.01452]
[1771052279697,0.07251316,68953.0,68951.0,0.01552]